bitfinex/quotes_SOLUSD_20260114
["timestamp","ask_amount","ask_price","bid_price","bid_amount"]
[1768359713540,28.8154459,145.08,145.03,0.71032713]
[1768359714408,12.43354507,145.08,145.03,0.71032713]
[1768359714607,12.56,145.07,145.03,0.71032713]
[1768359714833,12.56,145.07,145.01,0.71032713]
[1768359715014,16.38190083,145.07,145.01,0.71032713]
[1768359715213,12.56,145.07,145.01,4.53222796]
[1768359715527,12.56,145.07,145.02,0.71032713]
[1768359716639,6.89369915,145.06,145.02,0.71032713]
[1768359720120,12.43350311,145.08,145.03,0.71032713]
[1768359720329,12.56,145.07,145.03,4.53222796]
[1768359720834,12.56,145.06,145.03,0.71032713]
[1768359722333,3.82190083,145.07,145.02,7.60581591]
[1768359722334,10.27066061,145.05,145.02,7.60581591]
[1768359723016,10.27066061,145.05,145.03,7.60535705]
[1768359723429,4.27070357,145.04,145.03,7.60535705]
[1768359723828,12.56,145.04,145.03,7.60535705]
[1768359724145,16.25523739,145.08,145.03,7.60535705]
[1768359724331,16.38190083,145.07,145.03,7.60535705]
[1768359724647,16.38190083,145.07,145.03,0.71032713]
[1768359724949,12.56,145.06,145.03,0.71032713]
[1768359725834,3.82190083,145.07,145.03,0.71032713]
[1768359726040,12.56,145.06,145.03,0.71032713]
[1768359727039,3.82190083,145.07,145.03,0.71032713]
[1768359727235,12.56,145.05,145.03,0.71032713]
[1768359727747,12.56,145.05,145.01,0.70155868]
[1768359728519,12.56,145.05,145.02,0.70155868]
[1768359733040,12.56,145.05,145.03,0.70155868]
[1768359733241,11.835,145.05,145.0,55.9]
[1768359733439,3.82190083,145.02,144.99,62.79676735]
[1768359733740,10.26208082,145.01,144.99,6.89676735]
[1768359735142,10.23208079,145.01,144.99,6.89676735]
[1768359735350,10.23208079,145.01,144.99,0.70155868]
[1768359735547,7.96416163,145.01,144.99,0.70155868]
[1768359736839,7.96416163,145.01,144.98,7.59906178]
[1768359737247,3.33155112,145.01,144.99,0.70155868]
[1768359739346,3.33155112,145.01,145.0,0.71324181]
[1768359739544,3.82190083,145.03,145.01,9.88802113]
[1768359739749,12.66821762,145.02,145.01,9.17477932]
[1768359740148,4.54378816,145.04,145.01,9.17477932]
[1768359740359,12.56,145.03,145.01,9.17477932]
[1768359740945,12.66208154,145.03,145.01,9.17477932]
[1768359741151,16.38190083,145.03,145.0,0.71324181]
[1768359741349,16.38190083,145.03,145.0,7.6096472]
[1768359741537,12.56,145.03,145.0,7.6096472]
[1768359743532,12.56,145.02,145.0,7.6096472]
[1768359746041,13.27568927,145.02,144.99,6.89702738]
[1768359746364,13.27568927,145.02,144.99,24.13959583]
[1768359746660,12.56,145.02,145.0,0.71324181]
[1768359746863,13.27568927,145.02,144.99,24.13959583]
[1768359748558,0.71568927,145.02,144.99,24.85283764]
[1768359748753,13.27568927,145.02,145.01,7.19147932]
[1768359749167,12.56,145.02,145.01,7.19147932]
[1768359749355,7.93000929,145.02,145.01,14.80079726]
[1768359750167,7.93000929,145.02,145.01,6.89607613]
[1768359750559,12.56,145.03,145.01,6.89607613]
[1768359751165,3.92398237,145.04,145.01,6.89607613]
[1768359751367,12.56,145.03,145.01,6.89607613]
[1768359751662,3.92398237,145.04,145.01,6.89607613]
[1768359751849,12.56,145.03,145.01,6.89607613]
[1768359752560,0.10821762,145.02,145.01,6.89607613]
[1768359753562,0.10821762,145.02,145.0,6.89655172]
[1768359754254,6.70684872,145.05,145.01,0.71324181]
[1768359754454,0.10208154,145.04,145.01,0.71324181]
[1768359754646,0.10208154,145.04,145.01,7.60916279]
[1768359754847,12.66208154,145.04,145.01,7.60916279]
[1768359755269,5.98496139,145.05,145.02,0.72484686]
[1768359755567,12.56,145.04,145.02,0.72484686]
[1768359755770,5.66371714,145.19,145.07,0.72484686]
[1768359755955,0.1,145.21,145.07,0.72484686]
[1768359755956,5.98496139,145.14,145.07,0.72484686]
[1768359756151,24.53877953,145.17,145.07,6.70980825]
[1768359756152,3.57345615,145.16,145.07,6.70980825]
[1768359756374,24.10966453,145.17,145.08,0.72484686]
[1768359756375,0.10242387,145.14,145.08,0.72484686]
[1768359756872,5.98496139,145.16,145.1,0.72484686]
[1768359757053,13.27535036,145.15,145.1,0.72484686]
[1768359757448,19.26031175,145.15,145.1,0.72484686]
[1768359758569,19.26031175,145.15,145.11,6.89132382]
[1768359758746,13.27535036,145.15,145.11,6.89132382]
[1768359760259,13.27535036,145.15,145.11,12.87628521]
[1768359760461,13.27535036,145.15,145.12,5.98496139]
[1768359763857,0.10855314,145.14,145.12,5.98496139]
[1768359765977,0.10855314,145.14,145.11,5.98496139]
[1768359767099,0.10855314,145.14,145.06,0.72484686]
[1768359767100,5.98496139,145.13,145.06,0.72484686]
[1768359767252,0.72154154,145.13,145.1,5.98496139]
[1768359767454,13.28154154,145.13,145.11,5.98496139]
[1768359767968,13.28154154,145.13,145.1,5.98496139]
[1768359772065,0.72154154,145.13,145.1,5.98496139]
[1768359772382,12.66242387,145.12,145.09,5.98496139]
[1768359772561,12.66242387,145.12,145.1,5.98496139]
[1768359778480,20.17115189,145.15,145.11,6.70980825]
[1768359778673,0.10242387,145.14,145.11,6.70980825]
[1768359778874,0.10242387,145.14,145.11,5.98496139]
[1768359779390,0.10242387,145.14,145.1,0.72484686]
[1768359779391,0.10242387,145.14,145.1,6.70980825]
[1768359780177,0.10242387,145.14,145.09,6.89210013]
[1768359780375,0.10242387,145.14,145.1,5.98496139]
[1768359780963,0.10242387,145.14,145.1,6.70980825]
[1768359782263,0.71535036,145.13,145.09,7.61694699]
[1768359782560,0.71535036,145.13,145.09,13.60190838]
[1768359782756,0.1,145.18,145.12,6.70980825]
[1768359782981,18.64496139,145.18,145.12,6.70980825]
[1768359783181,12.66,145.18,145.12,6.70980825]
[1768359783383,0.72154154,145.17,145.12,6.70980825]
[1768359783786,0.10242387,145.16,145.12,6.70980825]
[1768359785090,6.99139573,145.16,145.12,6.70980825]
[1768359786189,6.99139573,145.16,145.12,0.72484686]
[1768359786564,0.1,145.18,145.16,0.70121194]
[1768359786765,18.01435964,145.21,145.16,0.70121194]
[1768359786766,0.69165244,145.2,145.17,5.98496139]
[1768359787090,0.1,145.21,145.19,5.92496139]
[1768359787280,0.1,145.21,145.2,5.79732384]
[1768359787484,0.1,145.21,145.2,5.73732384]
[1768359787663,13.02399998,145.25,145.2,5.73732384]
[1768359787664,0.46399998,145.25,145.2,5.73732384]
[1768359787864,0.46399998,145.25,145.23,5.98496139]
[1768359787865,7.34873554,145.25,145.23,5.98496139]
[1768359788089,6.88473556,145.25,145.23,5.92496139]
[1768359788296,6.88473556,145.25,145.22,5.98496139]
[1768359788688,24.0935662,145.27,145.22,5.98496139]
[1768359789192,6.88373373,145.27,145.23,5.98496139]
[1768359789377,6.88373373,145.27,145.24,5.98496139]
[1768359790368,24.0902465,145.29,145.24,5.98496139]
[1768359791077,24.0902465,145.29,145.23,0.70121194]
[1768359791078,30.07520789,145.29,145.23,6.68617333]
[1768359791284,30.07520789,145.29,145.23,6.62617333]
[1768359791872,24.0902465,145.29,145.23,6.62617333]
[1768359792084,30.07520789,145.29,145.23,6.62617333]
[1768359792281,0.1,145.31,145.28,5.98496139]
[1768359792496,6.88058197,145.34,145.3,5.98496139]
[1768359792697,6.88058197,145.34,145.32,5.98496139]
[1768359792880,6.98004563,145.35,145.32,5.98496139]
[1768359793381,6.98004563,145.35,145.32,6.68617333]
[1768359793584,6.98004563,145.35,145.3,0.70121194]
[1768359793795,7.04004563,145.35,145.3,6.68617333]
[1768359794179,0.1,145.35,145.33,0.70121194]
[1768359794381,0.1,145.35,145.33,6.68617333]
[1768359794574,0.1,145.35,145.34,6.68617333]
[1768359794984,0.1,145.36,145.34,6.68617333]
[1768359795678,0.1,145.36,145.34,0.70121194]
[1768359797977,0.1,145.37,145.36,0.69182909]
[1768359798178,0.1,145.37,145.36,6.67679048]
[1768359798703,0.1,145.37,145.36,0.69182909]
[1768359798914,0.1,145.37,145.35,6.67679048]
[1768359799395,0.1,145.37,145.35,0.69182909]
[1768359799586,6.97913507,145.37,145.35,0.69182909]
[1768359800073,0.1,145.37,145.35,0.69182909]
[1768359801102,6.97911646,145.37,145.31,12.56]
[1768359801395,6.14339276,145.35,145.28,19.42295645]
[1768359801607,6.14339276,145.35,145.3,5.98496139]
[1768359801990,5.98496139,145.35,145.3,5.98496139]
[1768359802193,7.07811646,145.37,145.28,12.54]
[1768359802393,7.07811646,145.37,145.33,5.98496139]
[1768359802394,0.1,145.37,145.33,5.98496139]
[1768359802600,0.1,145.37,145.35,5.92496139]
[1768359802799,0.1,145.37,145.31,13.56156741]
[1768359802995,0.1,145.37,145.35,6.67679048]
[1768359803701,0.1,145.37,145.32,12.54]
[1768359803702,0.1,145.38,145.37,0.69182909]
[1768359803885,0.1,145.39,145.37,6.61679048]
[1768359804084,0.1,145.39,145.37,0.63182909]
[1768359804289,0.35702974,145.39,145.34,5.98496139]
[1768359804479,13.22005257,145.39,145.32,6.88105291]
[1768359804701,0.25666685,145.37,145.32,5.98496139]
[1768359805093,5.98496139,145.38,145.32,5.98496139]
[1768359805416,6.87899841,145.37,145.32,5.98496139]
[1768359805705,6.87899841,145.37,145.33,5.98496139]
[1768359805904,6.87899841,145.37,145.33,6.67679048]
[1768359806504,12.86348663,145.38,145.33,6.67679048]
[1768359806989,12.86348663,145.38,145.34,0.69182909]
[1768359807505,6.87852524,145.38,145.34,0.69182909]
[1768359808016,7.35821199,145.39,145.35,6.67679048]
[1768359808194,7.35821199,145.39,145.35,0.69182909]
[1768359809191,7.35821199,145.39,145.35,6.67679048]
[1768359809412,7.35821199,145.39,145.35,16.49409453]
[1768359810907,24.55334232,145.39,145.35,0.69182909]
[1768359811114,6.97821199,145.39,145.35,0.69182909]
[1768359815316,6.97821199,145.39,145.35,10.41554577]
[1768359815618,6.97821199,145.39,145.36,0.69236855]
[1768359816529,6.97821199,145.39,145.34,10.41608523]
[1768359816716,6.97821199,145.39,145.34,0.69236855]
[1768359817232,0.1017819,145.38,145.33,17.29680768]
[1768359817431,6.98034342,145.38,145.33,17.29680768]
[1768359817631,0.10450844,145.36,145.29,0.69236855]
[1768359817836,9.82822512,145.36,145.31,0.69236855]
[1768359819425,6.87994496,145.35,145.31,0.69236855]
[1768359821211,7.2516816,145.35,145.31,0.69236855]
[1768359821414,16.97539828,145.35,145.31,0.69236855]
[1768359821637,0.10718072,145.34,145.29,10.41608523]
[1768359821838,0.10718072,145.34,145.3,0.69236855]
[1768359822548,0.10718072,145.34,145.29,9.72371668]
[1768359822916,10.09280776,145.33,145.28,0.69236855]
[1768359823135,0.10979983,145.32,145.28,0.69236855]
[1768359823629,0.37719,145.36,145.31,10.41608523]
[1768359823934,0.37719,145.36,145.32,9.72371668]
[1768359824123,0.37719,145.36,145.31,10.41608523]
[1768359825136,7.25709057,145.36,145.31,10.41608523]
[1768359825714,6.87912485,145.37,145.33,0.69236855]
[1768359827149,6.87868861,145.38,145.34,0.69236855]
[1768359828137,6.87859018,145.38,145.34,0.69236855]
[1768359828739,6.87859018,145.38,145.34,10.41608523]
[1768359831540,6.87859018,145.38,145.34,4.50462155]
[1768359832044,6.87859018,145.38,145.35,0.69236855]
[1768359833342,6.97822535,145.39,145.36,0.69236855]
[1768359833541,6.97822535,145.39,145.36,0.63236855]
[1768359835149,3.812253,145.37,145.25,104.8]
[1768359835320,40.52560868,145.39,145.29,3.812253]
[1768359835520,3.812253,145.35,145.3,0.69236855]
[1768359836221,6.97946259,145.34,145.29,11.38726727]
[1768359837522,6.97946259,145.34,145.3,0.69236855]
[1768359837720,6.88046259,145.34,145.3,0.69236855]
[1768359838155,6.88015205,145.35,145.31,0.69236855]
[1768359838729,10.69240505,145.35,145.31,0.69236855]
[1768359839740,6.88015205,145.35,145.31,0.69236855]
[1768359841956,6.88015205,145.35,145.27,23.88875709]
[1768359841957,0.44,145.34,145.24,5.78404699]
[1768359842142,3.812253,145.29,145.24,0.69236855]
[1768359842452,0.099,145.38,145.29,0.69236855]
[1768359842628,0.1023759,145.35,145.3,0.69236855]
[1768359844240,6.88041832,145.34,145.3,0.69236855]
[1768359844441,6.88041832,145.34,145.31,3.812253]
[1768359846348,0.1023759,145.35,145.31,4.53096052]
[1768359846557,6.97877039,145.36,145.32,3.812253]
[1768359846747,6.97877039,145.36,145.32,3.752253]
[1768359847634,6.97877039,145.36,145.33,3.812253]
[1768359847851,6.97877039,145.36,145.33,3.752253]
[1768359849255,6.97877039,145.36,145.32,4.53096052]
[1768359850552,6.97877039,145.36,145.33,3.812253]
[1768359851148,6.97877039,145.36,145.32,0.71870752]
[1768359851358,6.97877039,145.36,145.33,3.812253]
[1768359851659,0.1,145.39,145.36,0.71870752]
[1768359851958,0.1,145.43,145.41,0.71870752]
[1768359852264,0.1,145.43,145.35,6.6801107]
[1768359852265,0.54517093,145.44,145.42,3.15342395]
[1768359852466,7.074311,145.45,145.4,0.71870752]
[1768359852663,7.074311,145.45,145.42,3.812253]
[1768359852837,7.074311,145.45,145.4,0.71870752]
[1768359853035,7.074311,145.45,145.41,3.812253]
[1768359853647,7.074311,145.45,145.4,4.53096052]
[1768359854155,0.44170922,145.44,145.4,0.71870752]
[1768359854659,0.4383164,145.42,145.37,4.53096052]
[1768359854866,4.2505694,145.42,145.37,0.71870752]
[1768359855158,4.2505694,145.42,145.35,6.6801107]
[1768359855159,6.87805213,145.39,145.35,0.71870752]
[1768359860260,6.87805213,145.39,145.3,0.70153109]
[1768359860261,0.10578598,145.35,145.3,0.70153109]
[1768359860564,3.812253,145.34,145.3,0.70153109]
[1768359861360,12.54,145.38,145.33,0.70153109]
[1768359861565,12.54,145.38,145.34,0.70153109]
[1768359862354,6.87899841,145.37,145.34,0.70153109]
[1768359862874,3.812253,145.36,145.32,0.70153109]
[1768359863963,6.87994496,145.35,145.32,0.70153109]
[1768359865062,12.54,145.36,145.32,0.70153109]
[1768359868239,10.69168121,145.37,145.32,0.70153109]
[1768359868562,23.67339043,145.37,145.32,0.70153109]
[1768359868944,3.812253,145.36,145.32,0.70153109]
[1768359870051,10.69214745,145.36,145.32,0.70153109]
[1768359871866,6.87989445,145.36,145.32,0.70153109]
[1768359875662,167.80652604,150.84,145.39,0.6943139]
[1768359875663,6.97547945,145.45,145.39,0.6943139]
[1768359875963,6.97547945,145.45,145.39,11.1866776]
[1768359876163,0.67332657,145.44,145.39,7.3744246]
[1768359876370,6.97547945,145.45,145.4,0.6943139]
[1768359876565,7.56635536,145.45,145.4,0.6943139]
[1768359877555,7.56635536,145.45,145.4,7.57186183]
[1768359878466,7.56635536,145.45,145.4,0.6943139]
[1768359878774,7.56635536,145.45,145.37,0.6943139]
[1768359878775,0.67169396,145.42,145.37,0.6943139]
[1768359878962,0.59087591,145.44,145.39,7.57232206]
[1768359879158,0.59087591,145.44,145.4,0.6943139]
[1768359879360,19.51547945,145.45,145.41,0.6943139]
[1768359879561,20.10635536,145.45,145.41,0.6943139]
[1768359881568,0.67250206,145.44,145.39,6.64601285]
[1768359881875,19.51547945,145.45,145.4,0.6943139]
[1768359882058,19.51547945,145.45,145.41,0.6943139]
[1768359886676,0.1,145.45,145.42,0.6943139]
[1768359887779,0.1,145.46,145.44,0.6943139]
[1768359887988,0.1,145.46,145.44,0.6343139]
[1768359890363,0.1,145.46,145.44,6.58601285]
[1768359892287,0.1,145.46,145.45,0.6943139]
[1768359892494,0.1,145.47,145.45,0.6343139]
[1768359893479,0.1,145.47,145.45,6.58601285]
[1768359893990,0.1,145.47,145.45,6.52601285]
[1768359895392,0.1,145.47,145.45,0.5743139]
[1768359896490,0.1,145.47,145.45,6.52601285]
[1768359897092,6.87296813,145.5,145.46,0.6943139]
[1768359897389,7.64579822,145.51,145.47,6.58601285]
[1768359897584,7.64579822,145.51,145.47,6.53636343]
[1768359899481,0.77332657,145.51,145.47,13.41061887]
[1768359899796,0.77332657,145.51,145.48,6.64601285]
[1768359900096,0.77332657,145.51,145.48,0.6943139]
[1768359900676,7.64581203,145.51,145.48,0.6943139]
[1768359900878,0.67332657,145.5,145.47,5.95169895]
[1768359901286,0.67332657,145.5,145.43,6.6801107]
[1768359901485,0.67332657,145.5,145.45,5.95169895]
[1768359901684,0.67332657,145.5,145.46,5.95169895]
[1768359903194,7.54618425,145.5,145.46,6.64601285]
[1768359903504,7.54618425,145.5,145.47,0.6943139]
[1768359904989,7.54618425,145.5,145.46,6.64601285]
[1768359906400,0.72382806,145.48,145.43,7.53801353]
[1768359906596,0.72382806,145.48,145.44,6.61368095]
[1768359906904,0.72382806,145.49,145.45,6.61368095]
[1768359907502,0.72382806,145.49,145.45,0.661982]
[1768359909288,7.59668574,145.5,145.46,0.661982]
[1768359910708,0.72382806,145.49,145.46,0.661982]
[1768359911609,0.72382806,145.49,145.4,6.6801107]
[1768359911610,0.72382806,145.49,145.41,0.661982]
[1768359911790,0.72382806,145.49,145.43,6.61368095]
[1768359912111,0.72382806,145.49,145.45,0.661982]
[1768359912694,6.87379708,145.48,145.45,0.661982]
[1768359913510,7.59762514,145.48,145.44,6.61368095]
[1768359914407,7.59762514,145.48,145.45,0.661982]
[1768359916009,0.72382806,145.47,145.43,0.661982]
[1768359916213,0.72382806,145.47,145.41,6.61368095]
[1768359916909,0.72382806,145.45,145.41,6.61368095]
[1768359917115,0.72382806,145.45,145.41,5.95169895]
[1768359918020,0.6530706,145.44,145.41,5.95169895]
[1768359918915,0.6530706,145.44,145.4,12.8290595]
[1768359919417,0.6530706,145.44,145.4,13.53523489]
[1768359919617,0.6530706,145.44,145.41,5.95169895]
[1768359920912,0.62307061,145.44,145.4,13.53523489]
[1768359921123,35.67789669,145.47,145.42,5.95169895]
[1768359921124,6.87496365,145.46,145.42,5.95169895]
[1768359921295,30.01351809,145.46,145.4,0.70617539]
[1768359922696,30.01351809,145.46,145.39,12.82964156]
[1768359922697,30.01351809,145.46,145.39,5.95169895]
[1768359922899,0.6530706,145.43,145.38,23.07040924]
[1768359923098,0.6530706,145.42,145.38,9.53407637]
[1768359923303,0.6530706,145.42,145.37,12.63180965]
[1768359923304,0.62307061,145.42,145.37,12.63180965]
[1768359923802,0.62307061,145.42,145.37,13.33798504]
[1768359924627,7.50014186,145.42,145.37,6.65787434]
[1768359925215,0.6530706,145.41,145.36,5.95169895]
[1768359925423,0.6530706,145.41,145.35,6.65787434]
[1768359925721,0.6530706,145.4,145.35,0.70617539]
[1768359925917,0.6530706,145.39,145.35,0.70617539]
[1768359926120,0.6530706,145.39,145.33,0.70617539]
[1768359926303,0.6530706,145.36,145.31,0.70617539]
[1768359926510,0.6530706,145.35,145.31,0.70617539]
[1768359927323,0.6530706,145.35,145.33,6.6801107]
[1768359927517,0.62307061,145.35,145.33,6.6801107]
[1768359931809,0.6530706,145.37,145.33,13.56092065]
[1768359932017,0.6530706,145.37,145.33,20.21879499]
[1768359934143,0.6530706,145.37,145.33,14.26709604]
[1768359934348,0.6530706,145.37,145.33,20.21879499]
[1768359936446,0.6530706,145.37,145.33,29.69586661]
[1768359936743,0.71132658,145.4,145.36,5.95169895]
[1768359937338,0.71132658,145.4,145.35,13.55485166]
[1768359938548,7.58920855,145.4,145.35,13.55527591]
[1768359938760,0.71132658,145.39,145.35,7.60357696]
[1768359938950,0.71132658,145.39,145.35,13.55527591]
[1768359939429,0.71132658,145.39,145.35,11.41469842]
[1768359940155,0.71132658,145.39,145.35,7.60357696]
[1768359941447,6.87788197,145.4,145.37,0.72367045]
[1768359941448,0.71132658,145.4,145.37,0.72367045]
[1768359941646,0.71132658,145.4,145.37,4.53479191]
[1768359943752,0.71132658,145.4,145.37,0.72367045]
[1768359943937,0.71132658,145.4,145.36,14.01186353]
[1768359944849,0.71132658,145.39,145.36,9.47707162]
[1768359948265,7.58843269,145.41,145.37,0.72367045]
[1768359948950,0.71132658,145.4,145.36,10.20074207]
[1768359949260,0.71132658,145.4,145.36,14.01186353]
[1768359951354,7.58891087,145.4,145.36,14.01186353]
[1768359952669,0.71132658,145.42,145.37,4.53479191]
[1768359953247,0.71132658,145.41,145.37,4.53479191]
[1768359955658,7.58851328,145.41,145.37,4.53479191]
[1768359956142,7.58851328,145.41,145.37,0.72367045]
[1768359959469,0.71132658,145.4,145.37,0.72367045]
[1768359960554,0.71132658,145.41,145.37,0.72367045]
[1768359960768,0.71132658,145.41,145.37,4.53479191]
[1768359961068,7.58850372,145.41,145.37,0.72367045]
[1768359962070,7.58850372,145.41,145.36,20.16762372]
[1768359962071,0.71132658,145.4,145.36,13.28819308]
[1768359962249,0.71132658,145.4,145.36,14.01186353]
[1768359963165,0.71132658,145.4,145.36,20.89133129]
[1768359964178,0.71132658,145.4,145.37,0.72367045]
[1768359967773,7.58891202,145.4,145.37,0.72367045]
[1768359968480,0.71132658,145.4,145.37,0.72367045]
[1768359970383,7.58900367,145.4,145.37,0.72367045]
[1768359972078,4.20395441,145.39,145.31,5.76778461]
[1768359972263,0.71650971,145.35,145.31,6.88173281]
[1768359972887,0.71650971,145.35,145.32,5.9551107]
[1768359977163,0.71650971,145.35,145.32,12.83639783]
[1768359977485,0.71650971,145.35,145.32,16.64751929]
[1768359978669,0.71650971,145.35,145.32,12.83639783]
[1768359978873,0.71650971,145.35,145.32,16.64751929]
[1768359981489,0.71650971,145.35,145.32,17.3554571]
[1768359984689,0.71650971,145.35,145.32,13.54433564]
[1768359984882,0.71650971,145.35,145.32,17.3554571]
[1768359986890,0.6910938,145.36,145.32,16.64751929]
[1768359987082,6.87873085,145.38,145.35,4.51905927]
[1768359987083,0.6910938,145.38,145.35,4.51905927]
[1768359987693,0.6910938,145.38,145.35,0.70793781]
[1768359987895,0.6910938,145.38,145.34,4.51905927]
[1768359988514,0.6910938,145.38,145.34,11.39917936]
[1768359990692,0.6910938,145.38,145.35,0.70793781]
[1768359997199,6.87765441,145.4,145.36,0.67974318]
[1768359997378,0.4063655,145.39,145.36,0.67974318]
[1768360004185,6.87765441,145.4,145.36,0.67974318]
[1768360004597,7.28401991,145.4,145.36,0.67974318]
[1768360006484,0.4063655,145.4,145.36,0.67974318]
[1768360006880,7.28399074,145.4,145.36,0.67974318]
[1768360008513,7.57197541,145.4,145.36,0.67974318]
[1768360008901,0.4063655,145.39,145.35,12.83466993]
[1768360009906,0.4063655,145.39,145.35,6.87970771]
[1768360010104,0.4063655,145.39,145.35,13.51441311]
[1768360010298,0.4063655,145.39,145.36,0.67974318]
[1768360011513,7.57197541,145.4,145.36,0.67974318]
[1768360013016,0.4063655,145.39,145.35,5.95496222]
[1768360013208,0.4063655,145.39,145.35,12.83481064]
[1768360014296,0.4063655,145.39,145.36,0.67974318]
[1768360014794,0.4063655,145.39,145.36,6.6347054]
[1768360015018,0.4063655,145.39,145.36,0.67974318]
[1768360015914,6.87762524,145.4,145.36,0.67974318]
[1768360017912,7.28684178,145.4,145.36,0.67974318]
[1768360020225,7.57145628,145.41,145.36,0.67974318]
[1768360021825,0.4063655,145.4,145.36,0.67974318]
[1768360023418,7.284048,145.4,145.36,0.67974318]
[1768360029909,0.69147033,145.39,145.36,0.68432056]
[1768360030629,7.58415223,145.4,145.36,0.68432056]
[1768360034529,0.39436714,145.39,145.36,0.68432056]
[1768360034740,7.27247841,145.39,145.36,0.68432056]
[1768360034939,0.39436714,145.39,145.36,0.68432056]
[1768360035831,6.87775288,145.4,145.36,0.68432056]
[1768360036040,7.27212002,145.4,145.36,0.68432056]
[1768360041647,7.22387172,145.4,145.36,0.68432056]
[1768360044146,0.68519947,145.39,145.36,0.68432056]
[1768360044351,0.68519947,145.39,145.35,12.83481723]
[1768360044725,0.68519947,145.39,145.35,18.60260184]
[1768360045648,0.68519947,145.39,145.35,19.32100181]
[1768360046249,0.68519947,145.39,145.35,18.60260184]
[1768360046430,7.51470405,145.4,145.36,0.71839997]
[1768360049145,0.68519947,145.4,145.36,0.71839997]
[1768360049353,7.56249752,145.41,145.36,0.71839997]
[1768360049858,7.56249752,145.41,145.37,0.71839997]
[1768360052134,7.56163799,145.43,145.4,0.71839997]
[1768360052950,0.68519947,145.43,145.4,0.71839997]
[1768360056458,7.56140863,145.43,145.4,0.71839997]
[1768360057662,7.59257821,145.44,145.4,0.71839997]
[1768360063061,7.2603208,145.43,145.4,0.71839997]
[1768360065866,7.59257821,145.44,145.4,0.71839997]
[1768360068869,7.59257821,145.44,145.41,0.65683924]
[1768360069969,24.78030717,145.45,145.41,0.65683924]
[1768360070363,0.38405043,145.44,145.41,0.65683924]
[1768360071155,24.06341652,145.45,145.41,0.65683924]
[1768360071342,6.87521485,145.45,145.42,0.65683924]
[1768360072364,7.25926528,145.45,145.42,0.65683924]
[1768360072862,0.71356225,145.44,145.4,0.65683924]
[1768360073263,7.58940985,145.44,145.4,0.65683924]
[1768360073653,7.58940985,145.44,145.41,0.65683924]
[1768360076565,6.8758476,145.44,145.41,0.65683924]
[1768360079466,0.71689065,145.41,145.35,12.45928428]
[1768360079769,0.71689065,145.41,145.35,10.48917369]
[1768360080243,24.06506652,145.44,145.35,17.36889036]
[1768360080448,3.80906299,145.49,145.41,17.36612923]
[1768360080650,27.86586932,145.49,145.41,17.36612923]
[1768360080860,0.71689065,145.48,145.41,17.36612923]
[1768360081367,7.59116025,145.47,145.42,0.65683924]
[1768360081567,0.71689065,145.46,145.42,0.65683924]
[1768360082757,0.71689065,145.45,145.42,0.65683924]
[1768360082952,0.71689065,145.45,145.41,0.65683924]
[1768360083158,0.71689065,145.48,145.43,0.65683924]
[1768360084168,0.71689065,145.48,145.43,4.46590223]
[1768360084471,0.71689065,145.48,145.44,0.65683924]
[1768360085171,0.71689065,145.48,145.45,0.68379292]
[1768360086862,7.5907238,145.48,145.45,0.68379292]
[1768360091379,0.65917201,145.48,145.45,0.68379292]
[1768360091675,0.65917201,145.48,145.44,4.49285591]
[1768360092351,7.5329879,145.48,145.45,0.68379292]
[1768360098591,7.5329879,145.48,145.45,4.49285591]
[1768360104578,7.5329879,145.48,145.45,0.68379292]
[1768360104784,7.5329879,145.48,145.45,4.49285591]
[1768360105187,0.679816,145.47,145.45,3.80906299]
[1768360105484,0.679816,145.47,145.45,3.08406299]
[1768360105669,0.679816,145.47,145.41,21.42025591]
[1768360105875,0.099,145.45,145.39,0.69694735]
[1768360106070,0.57500784,145.43,145.4,3.80906299]
[1768360106579,0.57500784,145.43,145.4,4.50601034]
[1768360107580,0.57500784,145.43,145.4,3.80906299]
[1768360109388,19.41577235,145.44,145.41,0.69694735]
[1768360109580,19.51477235,145.44,145.4,4.50601034]
[1768360110089,6.97477235,145.44,145.41,3.80906299]
[1768360115192,7.45135402,145.43,145.4,4.50601034]
[1768360116684,6.87634618,145.43,145.4,4.50601034]
[1768360117795,0.099,145.43,145.4,4.50601034]
[1768360118276,0.099,145.43,145.4,0.69694735]
[1768360118478,0.099,145.43,145.4,4.50601034]
[1768360118774,7.45550356,145.44,145.4,4.50601034]
[1768360122202,7.45550356,145.44,145.4,0.69694735]
[1768360122377,0.099,145.43,145.38,0.72398036]
[1768360122573,0.57500784,145.41,145.37,4.53304335]
[1768360122788,0.57500784,145.41,145.37,0.72398036]
[1768360124003,6.87757909,145.4,145.37,0.72398036]
[1768360124196,6.98133916,145.4,145.37,0.72398036]
[1768360125903,6.98133916,145.4,145.37,6.67825844]
[1768360127201,6.98133916,145.4,145.37,0.72398036]
[1768360127377,6.98133916,145.4,145.37,6.67825844]
[1768360128610,6.98133916,145.4,145.37,0.72398036]
[1768360128800,0.57029537,145.39,145.35,14.861567]